[Event "St Kilda East and Caulfield Chess Club RAPID Term 3, 2025"]
[Site "st kilda east, Australia"]
[Date "2025.07.24"]
[Round "5.2"]
[White "Bambridge, Greg"]
[Black "O'Connor, Alistair"]
[Result "1-0"]
[TimeControl "13 minutes per game plus 2 seconds from move 1"]
[WhiteElo "1081"]
[BlackElo "1000"]

1. e4 {[%clk 00:13:00]} {[%emt 00:00:03]} e5 {[%clk 00:13:01]} 2. Nf3 {[%clk
00:13:01]} {[%emt 00:00:01]} c5 {[%clk 00:13:01]} {[%emt 00:00:02]} 3. Nxe5
{[%clk 00:12:30]} {[%emt 00:00:33]} Nc6 {[%clk 00:13:01]} {[%emt 00:00:02]} 4.
Nxc6 {[%clk 00:11:50]} {[%emt 00:00:42]} dxc6 {[%clk 00:13:00]} {[%emt
00:00:02]} 5. Be2 {[%clk 00:11:51]} {[%emt 00:00:02]} Be6 {[%clk 00:12:36]}
{[%emt 00:00:26]} 6. d3 {[%clk 00:11:35]} {[%emt 00:00:17]} Nf6 {[%clk
00:12:05]} {[%emt 00:00:32]} 7. Bg5 {[%clk 00:11:14]} {[%emt 00:00:23]} Qc7
{[%clk 00:12:04]} {[%emt 00:00:04]} 8. Nd2 {[%clk 00:10:49]} {[%emt 00:00:27]}
Be7 {[%clk 00:11:50]} {[%emt 00:00:16]} 9. Nf3 {[%clk 00:10:37]} {[%emt
00:00:13]} h6 {[%clk 00:11:25]} {[%emt 00:00:28]} 10. Bh4 {[%clk 00:10:30]}
{[%emt 00:00:09]} O-O-O {[%clk 00:10:56]} {[%emt 00:00:31]} 11. O-O {[%emt
00:01:14]} Nxe4 {[%emt 00:00:07]} 12. Bxe7 {[%clk 00:08:58]} {[%emt 00:00:13]}
Qxe7 {[%clk 00:10:54]} {[%emt 00:00:04]} 13. Qe1 {[%clk 00:08:48]} {[%emt
00:00:12]} Ng5 {[%clk 00:10:44]} {[%emt 00:00:12]} 14. Qa5 {[%clk 00:08:46]}
{[%emt 00:00:04]} Kb8 {[%clk 00:09:58]} {[%emt 00:00:48]} 15. Rfe1 {[%clk
00:07:21]} {[%emt 00:01:27]} Qd6 {[%clk 00:08:43]} {[%emt 00:01:17]} 16. Nd2
{[%clk 00:06:29]} {[%emt 00:00:54]} Bd5 {[%clk 00:07:15]} {[%emt 00:01:31]} 17.
Rad1 {[%clk 00:06:17]} {[%emt 00:00:14]} Qg6 {[%clk 00:06:58]} {[%emt
00:00:19]} 18. Ne4 {[%clk 00:03:37]} {[%emt 00:02:42]} Ne6 {[%clk 00:06:10]}
{[%emt 00:00:50]} 19. Bf1 {[%clk 00:03:10]} {[%emt 00:00:28]} f5 {[%clk
00:05:05]} {[%emt 00:01:06]} 20. Nxc5 {[%clk 00:03:10]} {[%emt 00:00:03]} Nxc5
{[%clk 00:05:02]} {[%emt 00:00:05]} 21. Qxc5 {[%clk 00:03:09]} {[%emt
00:00:03]} Rhe8 {[%clk 00:04:49]} {[%emt 00:00:16]} 22. c4 {[%clk 00:03:07]}
{[%emt 00:00:04]} b6 {[%clk 00:04:31]} {[%emt 00:00:19]} 23. Qd4 {[%clk
00:02:32]} {[%emt 00:00:37]} Bxg2 {[%clk 00:04:19]} {[%emt 00:00:14]} 24. Qf4+
{[%clk 00:02:32]} {[%emt 00:00:02]} Kb7 {[%clk 00:03:49]} {[%emt 00:00:32]} 25.
Bxg2 {[%clk 00:02:32]} {[%emt 00:00:02]} Qf6 {[%clk 00:03:07]} {[%emt
00:00:43]} 26. Rxe8 {[%clk 00:02:29]} {[%emt 00:00:05]} Rxe8 {[%clk 00:03:08]}
{[%emt 00:00:02]} 27. Qf3 {[%clk 00:02:27]} {[%emt 00:00:04]} g5 {[%clk
00:03:05]} {[%emt 00:00:05]} 28. d4 {[%clk 00:02:18]} {[%emt 00:00:11]} g4
{[%clk 00:02:59]} {[%emt 00:00:08]} 29. Qf4 {[%clk 00:02:10]} {[%emt 00:00:10]}
g3 {[%clk 00:01:59]} {[%emt 00:01:01]} 30. hxg3 {[%clk 00:02:08]} {[%emt
00:00:05]} h5 {[%clk 00:01:56]} {[%emt 00:00:05]} 31. d5 {[%clk 00:02:08]}
{[%emt 00:00:02]} h4 {[%clk 00:01:50]} {[%emt 00:00:08]} 32. dxc6+ {[%clk
00:02:08]} {[%emt 00:00:02]} Ka6 {[%clk 00:01:51]} {[%emt 00:00:01]} 33. Bf1
{[%clk 00:01:36]} {[%emt 00:00:33]} hxg3 {[%clk 00:01:45]} {[%emt 00:00:08]} 34.
c5+ {[%clk 00:01:37]} {[%emt 00:00:02]} b5 {[%clk 00:01:46]} {[%emt 00:00:01]}
35. Qxg3 {[%clk 00:01:29]} {[%emt 00:00:10]} Qxc6 {[%clk 00:01:31]} {[%emt
00:00:17]} 36. Qa3+ {[%clk 00:01:29]} {[%emt 00:00:02]} Kb7 {[%clk 00:01:31]}
{[%emt 00:00:02]} 37. Bg2 {[%clk 00:01:30]} 1-0

[Event "St Kilda East and Caulfield Chess Club RAPID Term 3, 2025"]
[Site "st kilda east, Australia"]
[Date "2025.07.24"]
[Round "6.4"]
[White "Cukierman, David"]
[Black "Beckman, John"]
[Result "0-1"]
[TimeControl "13 minutes per game plus 2 seconds from move 1"]
[WhiteElo "551"]
[BlackElo "859"]

1. e4 {[%clk 00:12:59]} {[%emt 00:00:02]} d6 {[%clk 00:12:59]} {[%emt
00:00:04]} 2. Nf3 {[%clk 00:12:54]} {[%emt 00:00:07]} e5 {[%clk 00:12:53]}
{[%emt 00:00:07]} 3. Bc4 {[%clk 00:12:47]} {[%emt 00:00:09]} h6 {[%clk
00:12:36]} {[%emt 00:00:20]} 4. d3 {[%clk 00:12:44]} {[%emt 00:00:03]} Nf6
{[%clk 00:12:33]} {[%emt 00:00:06]} 5. Be3 {[%clk 00:12:36]} {[%emt 00:00:09]}
Be7 {[%clk 00:12:30]} {[%emt 00:00:05]} 6. O-O {[%clk 00:12:31]} {[%emt
00:00:08]} O-O {[%clk 00:12:31]} {[%emt 00:00:02]} 7. Nc3 {[%clk 00:12:10]}
{[%emt 00:00:23]} c6 {[%clk 00:12:30]} {[%emt 00:00:03]} 8. b4 {[%clk
00:10:52]} {[%emt 00:01:21]} a6 {[%clk 00:12:17]} {[%emt 00:00:14]} 9. Bb3
{[%clk 00:10:06]} {[%emt 00:00:49]} Bg4 {[%clk 00:11:58]} {[%emt 00:00:21]} 10.
d4 {[%clk 00:09:45]} {[%emt 00:00:22]} Qc7 {[%clk 00:10:38]} {[%emt 00:01:22]}
11. Qd3 {[%clk 00:09:12]} {[%emt 00:00:32]} Nbd7 {[%clk 00:10:05]} {[%emt
00:00:37]} 12. Nh4 {[%clk 00:08:04]} {[%emt 00:01:10]} Bh5 {[%clk 00:05:55]}
{[%emt 00:04:12]} 13. h3 {[%clk 00:07:28]} {[%emt 00:00:36]} Rad8 {[%clk
00:05:36]} {[%emt 00:00:23]} 14. g4 {[%clk 00:07:26]} {[%emt 00:00:04]} Bxg4
{[%clk 00:04:24]} {[%emt 00:01:14]} 15. hxg4 {[%clk 00:07:16]} {[%emt
00:00:12]} Nxg4 {[%clk 00:04:17]} {[%emt 00:00:09]} 16. Ng6 {[%clk 00:07:14]}
{[%emt 00:00:04]} Rde8 {[%clk 00:03:53]} {[%emt 00:00:26]} 17. Nxf8 {[%clk
00:06:57]} {[%emt 00:00:19]} Rxf8 {[%clk 00:03:49]} {[%emt 00:00:07]} 18. Rad1
{[%clk 00:06:34]} {[%emt 00:00:23]} Ndf6 {[%clk 00:03:35]} {[%emt 00:00:18]} 19.
dxe5 {[%clk 00:06:25]} {[%emt 00:00:12]} Nxe5 {[%clk 00:03:18]} {[%emt
00:00:18]} 20. Qe2 {[%clk 00:06:07]} {[%emt 00:00:19]} Qc8 {[%clk 00:03:12]}
{[%emt 00:00:09]} 21. f4 {[%clk 00:06:00]} {[%emt 00:00:09]} Neg4 {[%clk
00:02:50]} {[%emt 00:00:24]} 22. f5 {[%clk 00:05:56]} {[%emt 00:00:07]} Rd8
{[%emt 00:01:12]} 23. Qf3 {[%clk 00:04:30]} {[%emt 00:00:29]} Qc7 {[%clk
00:02:27]} {[%emt 00:00:13]} 24. Rd2 {[%clk 00:04:01]} {[%emt 00:00:31]} h5
{[%clk 00:01:59]} {[%emt 00:00:30]} 25. Bg5 {[%clk 00:03:54]} {[%emt 00:00:08]}
Qb6+ {[%clk 00:01:49]} {[%emt 00:00:14]} 26. Kh1 {[%clk 00:03:04]} {[%emt
00:00:50]} Ne5 {[%clk 00:01:36]} {[%emt 00:00:16]} 27. Qg3 {[%clk 00:02:38]}
{[%emt 00:00:27]} Rd7 {[%clk 00:01:14]} {[%emt 00:00:25]} 28. a3 {[%clk
00:02:36]} {[%emt 00:00:05]} Nh7 {[%clk 00:01:09]} {[%emt 00:00:06]} 29. Bxe7
{[%clk 00:02:26]} {[%emt 00:00:12]} Rxe7 {[%clk 00:01:05]} {[%emt 00:00:06]} 30.
f6 {[%clk 00:02:25]} {[%emt 00:00:03]} Nxf6 {[%clk 00:00:43]} {[%emt 00:00:25]}
31. Rxf6 {[%clk 00:02:24]} {[%emt 00:00:03]} Ng4 {[%emt 00:00:19]} 32. Rfxd6
{[%clk 00:02:17]} Qb5 {[%clk 00:00:14]} {[%emt 00:00:21]} 33. Rd8+ {[%clk
00:02:11]} {[%emt 00:00:10]} Kh7 {[%clk 00:00:13]} {[%emt 00:00:02]} 34. Qd3
{[%clk 00:02:02]} {[%emt 00:00:07]} Qe5 {[%clk 00:00:09]} {[%emt 00:00:10]} 35.
Rg2 {[%clk 00:01:42]} {[%emt 00:00:20]} Qf4 {[%clk 00:00:06]} {[%emt 00:00:07]}
36. e5+ {[%clk 00:01:36]} {[%emt 00:00:10]} g6 {[%clk 00:00:06]} {[%emt
00:00:02]} 37. Ne2 {[%clk 00:01:32]} {[%emt 00:00:06]} Qf1+ {[%clk 00:00:04]}
{[%emt 00:00:04]} 38. Rg1 {[%clk 00:01:18]} {[%emt 00:00:14]} Qf2 {[%clk
00:00:05]} {[%emt 00:00:03]} 39. e6 {[%clk 00:01:02]} {[%emt 00:00:18]} Qh2#
{[%clk 00:00:05]} {[%emt 00:00:02]} 0-1

[Event "St Kilda East and Caulfield Chess Club RAPID Term 3, 2025"]
[Site "st kilda east, Australia"]
[Date "2025.07.24"]
[Round "6.3"]
[White "O'Connor, Alistair"]
[Black "Kovalenko, Kiy"]
[Result "1-0"]
[TimeControl "13 minutes per game plus 2 seconds from move 1"]
[WhiteElo "1000"]
[BlackElo "839"]

1. c4 {[%clk 00:12:59]} {[%emt 00:00:04]} e5 {[%clk 00:13:01]} {[%emt
00:00:01]} 2. g3 {[%clk 00:12:59]} {[%emt 00:00:02]} f5 {[%clk 00:13:00]}
{[%emt 00:00:04]} 3. Bg2 {[%clk 00:12:56]} {[%emt 00:00:04]} Nf6 {[%clk
00:13:01]} {[%emt 00:00:02]} 4. d3 {[%clk 00:12:56]} {[%emt 00:00:02]} Nc6
{[%clk 00:13:01]} {[%emt 00:00:02]} 5. a3 {[%clk 00:12:56]} {[%emt 00:00:01]}
a6 {[%clk 00:13:02]} {[%emt 00:00:02]} 6. Nc3 {[%clk 00:12:57]} {[%emt
00:00:01]} Bc5 {[%clk 00:13:02]} {[%emt 00:00:02]} 7. Nf3 {[%clk 00:12:43]}
{[%emt 00:00:15]} O-O {[%clk 00:12:55]} {[%emt 00:00:09]} 8. b4 {[%clk
00:12:44]} {[%emt 00:00:02]} Ba7 {[%clk 00:12:56]} {[%emt 00:00:02]} 9. b5
{[%clk 00:12:44]} {[%emt 00:00:01]} axb5 {[%clk 00:12:54]} {[%emt 00:00:04]} 10.
cxb5 {[%clk 00:12:44]} {[%emt 00:00:02]} Nd4 {[%clk 00:12:54]} {[%emt
00:00:02]} 11. Nxe5 {[%clk 00:12:44]} {[%emt 00:00:02]} Re8 {[%clk 00:12:36]}
{[%emt 00:00:20]} 12. Nf3 {[%clk 00:12:37]} {[%emt 00:00:09]} Nxf3+ {[%clk
00:12:34]} {[%emt 00:00:04]} 13. Bxf3 {[%clk 00:12:37]} {[%emt 00:00:02]} Bd4
{[%clk 00:12:19]} {[%emt 00:00:17]} 14. O-O {[%clk 00:12:25]} {[%emt 00:00:14]}
Bxc3 {[%clk 00:12:10]} {[%emt 00:00:12]} 15. Qb3+ {[%clk 00:12:25]} {[%emt
00:00:02]} Re6 {[%clk 00:11:59]} {[%emt 00:00:12]} 16. Qxc3 {[%clk 00:12:24]}
{[%emt 00:00:03]} c6 {[%clk 00:11:57]} {[%emt 00:00:05]} 17. a4 {[%clk
00:11:57]} {[%emt 00:00:30]} cxb5 {[%clk 00:11:41]} {[%emt 00:00:18]} 18. axb5
{[%clk 00:11:57]} {[%emt 00:00:02]} Rxa1 {[%clk 00:11:41]} {[%emt 00:00:01]} 19.
Qxa1 {[%clk 00:11:57]} {[%emt 00:00:01]} d5 {[%clk 00:11:27]} {[%emt 00:00:16]}
20. Bg5 {[%clk 00:11:45]} {[%emt 00:00:14]} Qb6 {[%clk 00:11:06]} {[%emt
00:00:22]} 21. Rc1 {[%clk 00:10:46]} {[%emt 00:01:02]} Bd7 {[%clk 00:10:53]}
{[%emt 00:00:13]} 22. Bxf6 {[%clk 00:10:17]} {[%emt 00:00:37]} Rxf6 {[%clk
00:10:42]} {[%emt 00:00:16]} 23. Qa8+ {[%clk 00:10:13]} {[%emt 00:00:06]} Kf7
{[%clk 00:10:14]} {[%emt 00:00:30]} 24. Bxd5+ {[%clk 00:09:58]} {[%emt
00:00:17]} Kg6 {[%clk 00:09:06]} {[%emt 00:01:09]} 25. Qxb7 {[%clk 00:09:57]}
{[%emt 00:00:03]} Qxb5 {[%clk 00:08:54]} {[%emt 00:00:13]} 26. Qxb5 {[%clk
00:09:33]} {[%emt 00:00:27]} Bxb5 {[%clk 00:08:53]} {[%emt 00:00:04]} 27. Rc7
{[%clk 00:09:00]} {[%emt 00:00:35]} Rd6 {[%clk 00:08:29]} {[%emt 00:00:26]} 28.
Bc4 {[%clk 00:08:28]} {[%emt 00:00:34]} Bc6 {[%clk 00:08:12]} {[%emt 00:00:19]}
29. f4 {[%clk 00:07:42]} {[%emt 00:00:47]} Ba8 {[%clk 00:08:01]} {[%emt
00:00:13]} 30. Re7 {[%clk 00:07:30]} {[%emt 00:00:15]} Bd5 {[%clk 00:07:21]}
{[%emt 00:00:42]} 31. Bxd5 {[%clk 00:07:18]} {[%emt 00:00:13]} Rxd5 {[%clk
00:07:22]} {[%emt 00:00:02]} 32. Kf2 {[%clk 00:07:02]} {[%emt 00:00:18]} Kf6
{[%clk 00:07:11]} {[%emt 00:00:13]} 33. Rc7 {[%clk 00:06:53]} {[%emt 00:00:11]}
h6 {[%clk 00:06:57]} {[%emt 00:00:16]} 34. Rc6+ {[%clk 00:06:34]} {[%emt
00:00:20]} Kf7 {[%clk 00:06:41]} {[%emt 00:00:20]} 35. Ke3 {[%clk 00:06:24]}
{[%emt 00:00:12]} Ra5 {[%clk 00:06:12]} {[%emt 00:00:31]} 36. Kd4 {[%clk
00:06:02]} {[%emt 00:00:29]} Ra2 {[%clk 00:05:58]} {[%emt 00:00:20]} 37. Ke5
{[%clk 00:05:25]} {[%emt 00:00:41]} Rxe2+ {[%clk 00:05:59]} {[%emt 00:00:04]}
38. Kxf5 {[%clk 00:05:25]} {[%emt 00:00:01]} Rxh2 {[%clk 00:05:30]} {[%emt
00:00:32]} 39. Rc7+ {[%clk 00:05:25]} {[%emt 00:00:02]} Kf8 {[%clk 00:05:09]}
{[%emt 00:00:22]} 40. d4 {[%clk 00:04:53]} {[%emt 00:00:35]} Rg2 {[%clk
00:04:22]} {[%emt 00:00:49]} 41. g4 {[%clk 00:04:50]} {[%emt 00:00:05]} g6+
{[%clk 00:04:22]} {[%emt 00:00:02]} 42. Kf6 {[%clk 00:04:51]} {[%emt 00:00:01]}
Ke8 {[%clk 00:04:12]} {[%emt 00:00:13]} 43. g5 {[%clk 00:04:47]} {[%emt
00:00:05]} h5 {[%clk 00:03:35]} {[%emt 00:00:38]} 44. Kxg6 {[%clk 00:04:32]}
{[%emt 00:00:18]} h4 {[%clk 00:03:35]} {[%emt 00:00:02]} 45. Rh7 {[%clk
00:04:31]} {[%emt 00:00:02]} Rh2 {[%clk 00:03:26]} {[%emt 00:00:11]} 46. Kf5
{[%clk 00:04:29]} {[%emt 00:00:03]} Rd2 {[%clk 00:03:09]} {[%emt 00:00:21]} 47.
Rxh4 {[%clk 00:04:27]} {[%emt 00:00:04]} Rxd4 {[%clk 00:03:10]} {[%emt
00:00:01]} 48. Rh6 {[%clk 00:04:16]} {[%emt 00:00:12]} Kf7 {[%clk 00:03:08]}
{[%emt 00:00:05]} 49. Rh7+ {[%clk 00:04:14]} {[%emt 00:00:04]} Kg8 {[%clk
00:03:08]} {[%emt 00:00:02]} 50. Ra7 {[%clk 00:04:14]} {[%emt 00:00:02]} Rd5+
{[%clk 00:03:07]} {[%emt 00:00:02]} 51. Kg4 {[%clk 00:04:14]} {[%emt 00:00:02]}
Rd4 {[%clk 00:03:08]} {[%emt 00:00:02]} 52. g6 {[%clk 00:04:13]} {[%emt
00:00:02]} Re4 {[%clk 00:02:50]} {[%emt 00:00:21]} 53. Kg5 {[%clk 00:04:13]}
{[%emt 00:00:02]} Rd4 {[%clk 00:02:36]} {[%emt 00:00:17]} 54. f5 {[%clk
00:04:10]} {[%emt 00:00:04]} Rd5 {[%clk 00:02:37]} {[%emt 00:00:02]} 55. Kf6
{[%clk 00:03:56]} {[%emt 00:00:16]} Rd6+ {[%clk 00:02:34]} {[%emt 00:00:05]} 56.
Ke5 {[%clk 00:03:57]} {[%emt 00:00:01]} Rb6 {[%clk 00:02:31]} {[%emt 00:00:04]}
57. Rd7 {[%clk 00:03:53]} {[%emt 00:00:07]} Rb5+ {[%clk 00:02:20]} {[%emt
00:00:13]} 58. Kf6 {[%clk 00:03:51]} {[%emt 00:00:03]} Rb6+ {[%clk 00:02:21]}
{[%emt 00:00:02]} 59. Kg5 {[%clk 00:03:45]} {[%emt 00:00:08]} Rb5 {[%clk
00:02:21]} {[%emt 00:00:03]} 60. Kh6 {[%clk 00:03:44]} {[%emt 00:00:02]} Rb8
{[%clk 00:01:39]} {[%emt 00:00:42]} 61. f6 {[%clk 00:03:44]} {[%emt 00:00:04]}
Kf8 {[%clk 00:00:53]} {[%emt 00:00:49]} 62. Rh7 {[%clk 00:03:35]} {[%emt
00:00:10]} Ke8 {[%clk 00:00:28]} {[%emt 00:00:27]} 63. Rh8+ {[%clk 00:03:35]}
{[%emt 00:00:02]} Kd7 {[%clk 00:00:29]} 64. Rxb8 {[%clk 00:03:35]} {[%emt
00:00:02]} Ke6 {[%clk 00:00:31]} 65. g7 {[%clk 00:03:35]} {[%emt 00:00:02]}
Kxf6 {[%clk 00:00:31]} {[%emt 00:00:01]} 66. g8=R {[%emt 00:00:03]} Kf5 {[%emt
00:00:03]} 67. Rge8 {[%clk 00:03:29]} {[%emt 00:00:04]} Kf6 {[%clk 00:00:32]}
{[%emt 00:00:01]} 68. Kh5 {[%clk 00:03:29]} {[%emt 00:00:02]} Kf7 {[%clk
00:00:34]} 69. Kg4 {[%clk 00:03:29]} {[%emt 00:00:02]} Kf6 {[%clk 00:00:34]}
{[%emt 00:00:02]} 70. Kf4 {[%clk 00:03:29]} {[%emt 00:00:01]} Kf7 {[%clk
00:00:35]} {[%emt 00:00:01]} 71. Ke4 {[%clk 00:03:30]} {[%emt 00:00:01]} Kf6
{[%clk 00:00:36]} {[%emt 00:00:01]} 72. Kd4 {[%clk 00:03:30]} {[%emt 00:00:01]}
Kf7 {[%clk 00:00:37]} 73. Re2 {[%clk 00:03:30]} {[%emt 00:00:02]} Kf6 {[%clk
00:00:37]} {[%emt 00:00:03]} 74. Rb1 {[%clk 00:03:31]} {[%emt 00:00:01]} Kf5
{[%clk 00:00:37]} {[%emt 00:00:03]} 75. Rf1+ {[%clk 00:03:31]} {[%emt
00:00:01]} Kg4 {[%clk 00:00:38]} 76. Rg2 {[%clk 00:03:32]} {[%emt 00:00:01]}
Kh3 {[%clk 00:00:39]} {[%emt 00:00:01]} 77. Rg8 {[%clk 00:03:32]} Kh2 {[%clk
00:00:39]} {[%emt 00:00:02]} 78. Ke3 {[%clk 00:03:33]} {[%emt 00:00:02]} 1-0

[Event "St Kilda East and Caulfield Chess Club RAPID Term 3, 2025"]
[Site "st kilda east, Australia"]
[Date "2025.07.24"]
[Round "6.1"]
[White "Rosenberger, Oliver"]
[Black "Lopata, Felix"]
[Result "1-0"]
[TimeControl "13 minutes per game plus 2 seconds from move 1"]
[WhiteElo "1675"]
[BlackElo "1088"]

1. d4 {[%clk 00:13:01]} e6 {[%clk 00:13:00]} {[%emt 00:00:03]} 2. c4 {[%clk
00:13:02]} d5 {[%clk 00:13:02]} {[%emt 00:00:01]} 3. Nc3 {[%clk 00:13:03]}
{[%emt 00:00:01]} Nf6 {[%clk 00:13:02]} {[%emt 00:00:02]} 4. cxd5 {[%clk
00:12:43]} {[%emt 00:00:22]} exd5 {[%clk 00:13:02]} {[%emt 00:00:02]} 5. Bg5
{[%clk 00:12:44]} c6 {[%clk 00:12:54]} {[%emt 00:00:10]} 6. e3 {[%clk
00:12:45]} {[%emt 00:00:01]} Be7 {[%clk 00:12:52]} {[%emt 00:00:04]} 7. Bd3
{[%clk 00:12:45]} {[%emt 00:00:01]} Nbd7 {[%clk 00:12:51]} {[%emt 00:00:03]} 8.
Qc2 {[%clk 00:12:46]} h6 {[%clk 00:12:51]} {[%emt 00:00:02]} 9. Bh4 {[%clk
00:12:47]} {[%emt 00:00:01]} O-O {[%clk 00:12:46]} {[%emt 00:00:07]} 10. Nge2
{[%clk 00:12:48]} {[%emt 00:00:01]} Re8 {[%clk 00:12:41]} {[%emt 00:00:07]} 11.
O-O {[%clk 00:12:48]} {[%emt 00:00:02]} Nf8 {[%clk 00:12:41]} {[%emt 00:00:02]}
12. Rad1 {[%clk 00:12:49]} {[%emt 00:00:02]} Ne6 {[%clk 00:12:27]} {[%emt
00:00:16]} 13. f3 {[%clk 00:12:46]} {[%emt 00:00:04]} Nh5 {[%clk 00:11:58]}
{[%emt 00:00:31]} 14. Bf2 {[%clk 00:12:32]} {[%emt 00:00:17]} c5 {[%clk
00:11:44]} {[%emt 00:00:16]} 15. g4 {[%clk 00:12:14]} {[%emt 00:00:19]} cxd4
{[%clk 00:11:27]} {[%emt 00:00:19]} 16. exd4 {[%clk 00:11:51]} {[%emt
00:00:25]} Nhf4 {[%clk 00:11:26]} {[%emt 00:00:03]} 17. Bg3 {[%clk 00:11:15]}
{[%emt 00:00:38]} Bd6 {[%clk 00:10:41]} {[%emt 00:00:48]} 18. Bf5 {[%clk
00:10:44]} {[%emt 00:00:31]} Nxe2+ {[%clk 00:10:28]} {[%emt 00:00:15]} 19. Nxe2
{[%clk 00:10:43]} {[%emt 00:00:03]} Bxg3 {[%clk 00:10:17]} {[%emt 00:00:14]} 20.
hxg3 {[%clk 00:10:25]} {[%emt 00:00:20]} Bd7 {[%clk 00:09:33]} {[%emt
00:00:47]} 21. Bxe6 {[%clk 00:10:14]} {[%emt 00:00:13]} Rxe6 {[%clk 00:09:22]}
{[%emt 00:00:13]} 22. Nf4 {[%clk 00:10:14]} {[%emt 00:00:02]} Rc6 {[%clk
00:08:35]} {[%emt 00:00:49]} 23. Qe2 {[%clk 00:09:29]} {[%emt 00:00:46]} Be6
{[%clk 00:07:54]} {[%emt 00:00:45]} 24. Rfe1 {[%clk 00:08:57]} {[%emt
00:00:33]} Qc7 {[%clk 00:07:34]} {[%emt 00:00:22]} 25. Kg2 {[%clk 00:08:15]}
{[%emt 00:00:44]} Rc8 {[%clk 00:07:15]} {[%emt 00:00:21]} 26. Rd2 {[%clk
00:07:53]} {[%emt 00:00:24]} Re8 {[%clk 00:05:39]} {[%emt 00:01:37]} 27. Qd3
{[%clk 00:07:13]} {[%emt 00:00:43]} Qd7 {[%clk 00:05:01]} {[%emt 00:00:41]} 28.
Rh1 {[%clk 00:06:58]} {[%emt 00:00:15]} Qe7 {[%clk 00:03:39]} {[%emt 00:01:25]}
29. Rh5 {[%clk 00:06:48]} {[%emt 00:00:11]} Rd8 {[%clk 00:03:13]} {[%emt
00:00:29]} 30. g5 {[%clk 00:06:39]} {[%emt 00:00:10]} g6 {[%clk 00:02:46]}
{[%emt 00:00:29]} 31. Rxh6 {[%clk 00:06:08]} {[%emt 00:00:33]} Bf5 {[%clk
00:02:45]} {[%emt 00:00:04]} 32. Qb3 {[%clk 00:04:50]} {[%emt 00:01:19]} Qxg5
{[%clk 00:02:26]} {[%emt 00:00:22]} 33. Rh1 {[%clk 00:04:48]} {[%emt 00:00:04]}
b6 {[%clk 00:02:01]} {[%emt 00:00:28]} 34. Re2 {[%clk 00:04:36]} {[%emt
00:00:13]} Rcd6 {[%clk 00:01:46]} {[%emt 00:00:17]} 35. Qb5 {[%clk 00:04:17]}
{[%emt 00:00:21]} Bd7 {[%clk 00:01:41]} {[%emt 00:00:07]} 36. Qb4 {[%clk
00:04:08]} {[%emt 00:00:10]} Rf6 {[%clk 00:01:38]} {[%emt 00:00:06]} 37. Qe7
{[%clk 00:04:02]} {[%emt 00:00:07]} Rf5 {[%clk 00:00:47]} {[%emt 00:00:54]} 38.
Qxg5 {[%clk 00:03:27]} {[%emt 00:00:36]} Rxg5 {[%clk 00:00:47]} {[%emt
00:00:02]} 39. Re7 {[%clk 00:03:27]} {[%emt 00:00:02]} Be8 {[%clk 00:00:37]}
{[%emt 00:00:13]} 40. Nd3 {[%clk 00:03:13]} {[%emt 00:00:16]} Bb5 {[%clk
00:00:33]} {[%emt 00:00:07]} 41. Ne5 {[%clk 00:03:11]} {[%emt 00:00:04]} Rc8
{[%clk 00:00:31]} {[%emt 00:00:04]} 42. g4 {[%clk 00:02:01]} {[%emt 00:01:11]}
Rc2+ {[%clk 00:00:24]} {[%emt 00:00:08]} 43. Kg3 {[%clk 00:02:02]} {[%emt
00:00:01]} Re2 {[%clk 00:00:11]} {[%emt 00:00:16]} 44. f4 {[%clk 00:01:26]}
{[%emt 00:00:37]} Re3+ {[%clk 00:00:11]} {[%emt 00:00:02]} 45. Kf2 {[%clk
00:01:26]} {[%emt 00:00:01]} Re2+ {[%clk 00:00:12]} {[%emt 00:00:02]} 46. Kf3
{[%clk 00:01:27]} Rgxe5 {[%clk 00:00:10]} {[%emt 00:00:04]} 47. fxe5 {[%clk
00:01:07]} {[%emt 00:00:22]} Rxb2 {[%clk 00:00:09]} {[%emt 00:00:04]} 48. e6
{[%clk 00:01:05]} {[%emt 00:00:04]} Bd3 {[%clk 00:00:10]} {[%emt 00:00:01]} 49.
exf7+ {[%clk 00:00:59]} {[%emt 00:00:08]} Kf8 {[%clk 00:00:11]} {[%emt
00:00:01]} 50. Rh8+ {[%clk 00:00:58]} {[%emt 00:00:02]} Kxe7 {[%clk 00:00:10]}
{[%emt 00:00:03]} 51. f8=Q+ {[%clk 00:00:55]} {[%emt 00:00:05]} 1-0